[Event "*** SCC Grand Prix: Titled Tuesday Blitz"]
[Site "Chess.com"]
[Date "2020.06.09"]
[Round "10"]
[White "ElviraBerend"]
[Black "ecwinslow"]
[Result "1-0"]
[WhiteElo "2398"]
[BlackElo "2257"]
[TimeControl "180+1"]
[EndTime "10:56:48 PDT"]
[Termination "ElviraBerend won on time"]

1. d4 {[%clk 0:02:59.3]} 1... Nf6 {[%clk 0:02:58.7]} 2. c4 {[%clk 0:02:58.4]}
2... g6 {[%clk 0:02:56.5]} 3. Nf3 {[%clk 0:02:57.7]} 3... Bg7 {[%clk 0:02:56.6]}
4. g3 {[%clk 0:02:57.8]} 4... O-O {[%clk 0:02:56.7]} 5. Bg2 {[%clk 0:02:56.2]}
5... d6 {[%clk 0:02:57.2]} 6. O-O {[%clk 0:02:55.5]} 6... c6 {[%clk 0:02:56.4]}
7. Nc3 {[%clk 0:02:54.9]} 7... Qa5 {[%clk 0:02:55.1]} 8. e4 {[%clk 0:02:52.3]}
8... e5 {[%clk 0:02:54.6]} 9. d5 {[%clk 0:02:46.8]} 9... c5 {[%clk 0:02:41.7]}
10. Ne1 {[%clk 0:02:39.5]} 10... a6 {[%clk 0:02:36.4]} 11. Nd3 {[%clk
0:02:38.2]} 11... b5 {[%clk 0:02:32.3]} 12. Bd2 {[%clk 0:02:28.2]} 12... bxc4
{[%clk 0:02:27.7]} 13. Ne1 {[%clk 0:02:25.9]} 13... Nbd7 {[%clk 0:02:21.2]} 14.
Nc2 {[%clk 0:02:25.3]} 14... Rb8 {[%clk 0:02:12.8]} 15. Rb1 {[%clk 0:02:22.7]}
15... Qc7 {[%clk 0:02:03.7]} 16. Ne3 {[%clk 0:02:21]} 16... Nb6 {[%clk
0:02:00.5]} 17. Na4 {[%clk 0:02:13.2]} 17... Bd7 {[%clk 0:01:56]} 18. Nxb6
{[%clk 0:02:11]} 18... Qxb6 {[%clk 0:01:53.8]} 19. Nxc4 {[%clk 0:02:10.4]} 19...
Qc7 {[%clk 0:01:51.2]} 20. Na5 {[%clk 0:02:07.2]} 20... Rb5 {[%clk 0:01:37.4]}
21. Nc4 {[%clk 0:02:02.9]} 21... Ne8 {[%clk 0:01:27.7]} 22. b3 {[%clk
0:02:00.6]} 22... f5 {[%clk 0:01:17.7]} 23. exf5 {[%clk 0:01:52.2]} 23... Bxf5
{[%clk 0:01:07.8]} 24. Rc1 {[%clk 0:01:51]} 24... Bd3 {[%clk 0:01:00.9]} 25. Re1
{[%clk 0:01:50]} 25... e4 {[%clk 0:00:59.9]} 26. Be3 {[%clk 0:01:46.3]} 26...
Qf7 {[%clk 0:00:44.7]} 27. Qd2 {[%clk 0:01:39.3]} 27... Rb4 {[%clk 0:00:37.3]}
28. Bf4 {[%clk 0:01:35.8]} 28... Bd4 {[%clk 0:00:32.5]} 29. Bxe4 {[%clk
0:01:30.6]} 29... Bxe4 {[%clk 0:00:24]} 30. Rxe4 {[%clk 0:01:29.8]} 30... Qxd5
{[%clk 0:00:23.4]} 31. Rce1 {[%clk 0:01:24.4]} 31... Nf6 {[%clk 0:00:16]} 32.
R4e2 {[%clk 0:01:22.2]} 32... Rxc4 {[%clk 0:00:11.2]} 33. bxc4 {[%clk
0:01:21.1]} 33... Qxc4 {[%clk 0:00:10.9]} 34. Bxd6 {[%clk 0:01:19.6]} 34... Rf7
{[%clk 0:00:09.6]} 35. Rc1 {[%clk 0:01:17.4]} 35... Qd5 {[%clk 0:00:08.7]} 36.
Bf4 {[%clk 0:01:17]} 36... Ne4 {[%clk 0:00:07.5]} 37. Qc2 {[%clk 0:01:16.6]}
37... Ng5 {[%clk 0:00:06.8]} 38. Bxg5 {[%clk 0:01:13.2]} 38... Qxg5 {[%clk
0:00:06.5]} 39. Rf1 {[%clk 0:01:12.5]} 39... Kg7 {[%clk 0:00:05.4]} 40. Qe4
{[%clk 0:01:12.3]} 40... h5 {[%clk 0:00:04.6]} 41. Kg2 {[%clk 0:01:12.2]} 41...
Qd8 {[%clk 0:00:03.1]} 42. h4 {[%clk 0:01:09.9]} 42... Qd6 {[%clk 0:00:02.1]}
43. Qe6 {[%clk 0:01:07.9]} 1-0

[Event "*** SCC Grand Prix: Titled Tuesday Blitz"]
[Site "Chess.com"]
[Date "2020.06.09"]
[Round "10"]
[White "Vision_64"]
[Black "colegiodemadrid"]
[Result "0-1"]
[WhiteElo "2139"]
[BlackElo "2339"]
[TimeControl "180+1"]
[EndTime "10:56:48 PDT"]
[Termination "colegiodemadrid won on time"]

1. e4 {[%clk 0:03:00.9]} 1... c5 {[%clk 0:02:57.3]} 2. Nf3 {[%clk 0:03:00.7]}
2... d6 {[%clk 0:02:57.8]} 3. d4 {[%clk 0:02:59.8]} 3... cxd4 {[%clk 0:02:58.7]}
4. Nxd4 {[%clk 0:03:00.1]} 4... Nf6 {[%clk 0:02:59.6]} 5. Nc3 {[%clk 0:03:00.3]}
5... a6 {[%clk 0:03:00]} 6. Bg5 {[%clk 0:03:00.8]} 6... e6 {[%clk 0:02:58.4]} 7.
f4 {[%clk 0:03:01.3]} 7... Be7 {[%clk 0:02:58.2]} 8. Qf3 {[%clk 0:03:01.7]} 8...
Qa5 {[%clk 0:02:58.8]} 9. O-O-O {[%clk 0:02:56.7]} 9... Bd7 {[%clk 0:02:57.7]}
10. Bd3 {[%clk 0:02:33.7]} 10... Nc6 {[%clk 0:02:56.5]} 11. Nb3 {[%clk 0:02:30]}
11... Qc7 {[%clk 0:02:56.9]} 12. Rhe1 {[%clk 0:02:28.5]} 12... h6 {[%clk
0:02:57.4]} 13. Bxf6 {[%clk 0:02:26.6]} 13... Bxf6 {[%clk 0:02:57]} 14. g4
{[%clk 0:02:23.4]} 14... Nb4 {[%clk 0:02:51.9]} 15. e5 {[%clk 0:01:48.5]} 15...
dxe5 {[%clk 0:02:38.4]} 16. fxe5 {[%clk 0:01:47.7]} 16... Bxe5 {[%clk
0:02:36.9]} 17. Rf1 {[%clk 0:01:20.2]} 17... Rf8 {[%clk 0:02:18.9]} 18. Bg6
{[%clk 0:01:13.9]} 18... O-O-O {[%clk 0:02:04.2]} 19. Bxf7 {[%clk 0:00:35.2]}
19... Bf6 {[%clk 0:02:03.6]} 20. Qe4 {[%clk 0:00:25.1]} 20... Rxf7 {[%clk
0:01:58.2]} 21. Qxb4 {[%clk 0:00:24.7]} 21... Bg5+ {[%clk 0:01:47.7]} 22. Kb1
{[%clk 0:00:23.6]} 22... Rxf1 {[%clk 0:01:47.9]} 23. Rxf1 {[%clk 0:00:23.4]}
23... Qxh2 {[%clk 0:01:48.4]} 24. Nc5 {[%clk 0:00:18.5]} 24... Qc7 {[%clk
0:01:46.5]} 25. Rf7 {[%clk 0:00:16.5]} 25... Qc6 {[%clk 0:01:40.9]} 26. a3
{[%clk 0:00:13.6]} 26... Bf6 {[%clk 0:01:34.5]} 27. N3a4 {[%clk 0:00:13.8]}
27... Kb8 {[%clk 0:01:17.5]} 28. Nb6 {[%clk 0:00:11.3]} 28... Qh1+ {[%clk
0:01:17]} 29. Ka2 {[%clk 0:00:11.1]} 29... Bc6 {[%clk 0:01:17.3]} 30. Nbd7+
{[%clk 0:00:08.4]} 30... Ka8 {[%clk 0:01:12.5]} 31. Nb6+ {[%clk 0:00:08]} 31...
Ka7 {[%clk 0:01:10.5]} 32. Nc4 {[%clk 0:00:06.1]} 32... Qd5 {[%clk 0:01:03.2]}
33. Qb6+ {[%clk 0:00:06]} 33... Ka8 {[%clk 0:01:02.6]} 34. b3 {[%clk 0:00:05]}
34... Qd4 {[%clk 0:01:01.5]} 35. Rxf6 {[%clk 0:00:04.1]} 35... gxf6 {[%clk
0:01:00.3]} 36. Nxa6 {[%clk 0:00:03.7]} 36... Qxb6 {[%clk 0:01:00.1]} 37. Nxb6+
{[%clk 0:00:03.3]} 37... Ka7 {[%clk 0:01:00.8]} 0-1

[Event "*** SCC Grand Prix: Titled Tuesday Blitz"]
[Site "Chess.com"]
[Date "2020.06.09"]
[Round "10"]
[White "chenxiaoyuer"]
[Black "MiroVlasenko"]
[Result "0-1"]
[WhiteElo "2375"]
[BlackElo "2596"]
[TimeControl "180+1"]
[EndTime "10:56:49 PDT"]
[Termination "MiroVlasenko won by checkmate"]

1. e4 {[%clk 0:03:00.9]} 1... Nc6 {[%clk 0:02:59.5]} 2. Nf3 {[%clk 0:02:59.9]}
2... d6 {[%clk 0:02:58.6]} 3. d4 {[%clk 0:02:59.2]} 3... Nf6 {[%clk 0:02:59.2]}
4. Nc3 {[%clk 0:02:46.8]} 4... g6 {[%clk 0:02:59.1]} 5. Bc4 {[%clk 0:02:42.6]}
5... Bg7 {[%clk 0:02:58.2]} 6. O-O {[%clk 0:02:35]} 6... O-O {[%clk 0:02:56.8]}
7. Bf4 {[%clk 0:02:33.9]} 7... Nxe4 {[%clk 0:02:52.4]} 8. Nxe4 {[%clk
0:02:25.9]} 8... d5 {[%clk 0:02:52.5]} 9. Bd3 {[%clk 0:02:24.1]} 9... dxe4
{[%clk 0:02:49.5]} 10. Bxe4 {[%clk 0:02:25]} 10... Nxd4 {[%clk 0:02:44]} 11.
Nxd4 {[%clk 0:02:19.1]} 11... Bxd4 {[%clk 0:02:33.9]} 12. Bxc7 {[%clk
0:02:11.9]} 12... Bxf2+ {[%clk 0:02:32.5]} 13. Rxf2 {[%clk 0:02:06.5]} 13...
Qxc7 {[%clk 0:02:32.7]} 14. Qd2 {[%clk 0:01:55.7]} 14... Kg7 {[%clk 0:02:28.6]}
15. Raf1 {[%clk 0:01:50.4]} 15... Be6 {[%clk 0:02:23.5]} 16. h4 {[%clk
0:01:24.6]} 16... Rad8 {[%clk 0:02:12.4]} 17. Qe3 {[%clk 0:01:23]} 17... Qe5
{[%clk 0:02:03.1]} 18. Qf3 {[%clk 0:01:14.2]} 18... b6 {[%clk 0:01:59.4]} 19. h5
{[%clk 0:01:11.2]} 19... Qxh5 {[%clk 0:01:57.8]} 20. Qxh5 {[%clk 0:01:10.4]}
20... gxh5 {[%clk 0:01:57.8]} 21. Rf3 {[%clk 0:01:08.1]} 21... Bg4 {[%clk
0:01:55]} 22. Rg3 {[%clk 0:01:07.9]} 22... e6 {[%clk 0:01:53.9]} 23. Ra3 {[%clk
0:00:44.3]} 23... a5 {[%clk 0:01:47.4]} 24. Rb3 {[%clk 0:00:41.8]} 24... Rd6
{[%clk 0:01:47.1]} 25. c4 {[%clk 0:00:39.7]} 25... Rc8 {[%clk 0:01:42.8]} 26.
Rc1 {[%clk 0:00:37.6]} 26... f5 {[%clk 0:01:28.9]} 27. Bf3 {[%clk 0:00:34.7]}
27... Kf6 {[%clk 0:01:23.8]} 28. Rb5 {[%clk 0:00:32.1]} 28... e5 {[%clk
0:01:18.4]} 29. a3 {[%clk 0:00:25.3]} 29... e4 {[%clk 0:01:14.7]} 30. Bxg4
{[%clk 0:00:23.1]} 30... hxg4 {[%clk 0:01:15.1]} 31. Rf1 {[%clk 0:00:21]} 31...
Rc5 {[%clk 0:01:14.2]} 32. Rxc5 {[%clk 0:00:14.7]} 32... bxc5 {[%clk 0:01:14.1]}
33. a4 {[%clk 0:00:14.5]} 33... Rd2 {[%clk 0:01:12.3]} 34. Rf2 {[%clk
0:00:15.4]} 34... Rxf2 {[%clk 0:01:09.9]} 35. Kxf2 {[%clk 0:00:16.3]} 35... f4
{[%clk 0:01:09.3]} 36. g3 {[%clk 0:00:16.5]} 36... Ke5 {[%clk 0:01:07.2]} 37.
gxf4+ {[%clk 0:00:16.3]} 37... Kxf4 {[%clk 0:01:07.6]} 38. b3 {[%clk 0:00:16.8]}
38... h5 {[%clk 0:01:07.2]} 39. b4 {[%clk 0:00:17]} 39... cxb4 {[%clk
0:01:06.7]} 40. c5 {[%clk 0:00:17.9]} 40... Ke5 {[%clk 0:01:07.2]} 41. c6 {[%clk
0:00:18.2]} 41... Kd6 {[%clk 0:01:07.5]} 42. c7 {[%clk 0:00:19.1]} 42... Kxc7
{[%clk 0:01:07.8]} 43. Ke3 {[%clk 0:00:20]} 43... h4 {[%clk 0:01:08.1]} 44. Kxe4
{[%clk 0:00:20.9]} 44... h3 {[%clk 0:01:08.6]} 45. Kf4 {[%clk 0:00:21.8]} 45...
h2 {[%clk 0:01:08.9]} 46. Kg3 {[%clk 0:00:22.7]} 46... h1=Q {[%clk 0:01:09.4]}
47. Kxg4 {[%clk 0:00:23.6]} 47... Qf1 {[%clk 0:01:07.9]} 48. Kg5 {[%clk
0:00:21.9]} 48... Kd6 {[%clk 0:01:08]} 49. Kg6 {[%clk 0:00:22.8]} 49... Ke6
{[%clk 0:01:08.2]} 50. Kg7 {[%clk 0:00:23.7]} 50... Qf6+ {[%clk 0:01:06.7]} 51.
Kg8 {[%clk 0:00:24.6]} 51... Qe7 {[%clk 0:01:06.6]} 52. Kh8 {[%clk 0:00:25.5]}
52... Kf6 {[%clk 0:01:07.1]} 53. Kg8 {[%clk 0:00:26.4]} 53... Qg7# {[%clk
0:01:07.4]} 0-1

[Event "*** SCC Grand Prix: Titled Tuesday Blitz"]
[Site "Chess.com"]
[Date "2020.06.09"]
[Round "10"]
[White "kingofthenil"]
[Black "Ladislav1969"]
[Result "0-1"]
[WhiteElo "2423"]
[BlackElo "2347"]
[TimeControl "180+1"]
[EndTime "10:56:49 PDT"]
[Termination "Ladislav1969 won on time"]

1. e4 {[%clk 0:03:00.9]} 1... c5 {[%clk 0:02:59.6]} 2. Nf3 {[%clk 0:02:59.3]}
2... e6 {[%clk 0:03:00]} 3. d4 {[%clk 0:02:59.7]} 3... cxd4 {[%clk 0:03:00.9]}
4. Nxd4 {[%clk 0:03:00.3]} 4... Nf6 {[%clk 0:03:00.8]} 5. Nc3 {[%clk 0:02:57.6]}
5... Nc6 {[%clk 0:03:00.7]} 6. Be3 {[%clk 0:02:56]} 6... Bb4 {[%clk 0:02:58.9]}
7. Nxc6 {[%clk 0:01:09.2]} 7... bxc6 {[%clk 0:02:58]} 8. Qf3 {[%clk 0:01:08.9]}
8... d5 {[%clk 0:02:44]} 9. Bd3 {[%clk 0:01:07.2]} 9... d4 {[%clk 0:02:35.7]}
10. O-O-O {[%clk 0:00:50.3]} 10... dxc3 {[%clk 0:02:25.3]} 11. Qg3 {[%clk
0:00:33.7]} 11... O-O {[%clk 0:01:55.4]} 12. e5 {[%clk 0:00:32.8]} 12... cxb2+
{[%clk 0:01:33.2]} 13. Kb1 {[%clk 0:00:26.6]} 13... Nd5 {[%clk 0:01:25.2]} 14.
Bh6 {[%clk 0:00:23]} 14... g6 {[%clk 0:01:11.4]} 15. Bc4 {[%clk 0:00:04.9]}
15... Nc3+ {[%clk 0:01:03.4]} 16. Kxb2 {[%clk 0:00:02.6]} 16... Nxd1+ {[%clk
0:01:02.8]} 17. Kc1 {[%clk 0:00:03.5]} 17... Ba3+ {[%clk 0:00:59.3]} 18. Qxa3
{[%clk 0:00:02.7]} 18... Nxf2 {[%clk 0:00:50.4]} 19. Rf1 {[%clk 0:00:03.2]}
19... Ng4 {[%clk 0:00:47.9]} 20. Rd1 {[%clk 0:00:02.6]} 20... Qe8 {[%clk
0:00:38.6]} 21. Bf4 {[%clk 0:00:01.5]} 21... Nf2 {[%clk 0:00:24.2]} 0-1

[Event "*** SCC Grand Prix: Titled Tuesday Blitz"]
[Site "Chess.com"]
[Date "2020.06.09"]
[Round "10"]
[White "yobdc"]
[Black "NateSolon"]
[Result "0-1"]
[WhiteElo "2304"]
[BlackElo "2555"]
[TimeControl "180+1"]
[EndTime "10:56:51 PDT"]
[Termination "NateSolon won by checkmate"]

1. e4 {[%clk 0:03:00.9]} 1... c5 {[%clk 0:02:59.6]} 2. Nf3 {[%clk 0:03:00.8]}
2... e6 {[%clk 0:02:59.5]} 3. c3 {[%clk 0:02:59.3]} 3... Nf6 {[%clk 0:02:58.4]}
4. e5 {[%clk 0:02:59]} 4... Nd5 {[%clk 0:02:58.7]} 5. d4 {[%clk 0:02:59.1]} 5...
cxd4 {[%clk 0:02:59.2]} 6. cxd4 {[%clk 0:02:59.3]} 6... d6 {[%clk 0:02:58.8]} 7.
Nc3 {[%clk 0:02:58.1]} 7... Nxc3 {[%clk 0:02:51.3]} 8. bxc3 {[%clk 0:02:59]}
8... Qc7 {[%clk 0:02:50.5]} 9. Bd2 {[%clk 0:02:58.8]} 9... Nd7 {[%clk
0:02:49.8]} 10. exd6 {[%clk 0:02:56.4]} 10... Bxd6 {[%clk 0:02:50.7]} 11. Bd3
{[%clk 0:02:56]} 11... b6 {[%clk 0:02:47.1]} 12. Ng5 {[%clk 0:02:55.3]} 12...
Nf6 {[%clk 0:02:38]} 13. Qf3 {[%clk 0:02:36.3]} 13... Bb7 {[%clk 0:02:36]} 14.
Qh3 {[%clk 0:02:36.4]} 14... h6 {[%clk 0:02:21.6]} 15. O-O {[%clk 0:02:32.9]}
15... O-O {[%clk 0:02:14.7]} 16. Nf3 {[%clk 0:02:24.6]} 16... Bf4 {[%clk
0:02:13.3]} 17. Bxf4 {[%clk 0:02:18.2]} 17... Qxf4 {[%clk 0:02:12.2]} 18. Ne5
{[%clk 0:02:17.9]} 18... Rac8 {[%clk 0:02:08.4]} 19. Rac1 {[%clk 0:02:15.1]}
19... Rc7 {[%clk 0:01:59.4]} 20. g3 {[%clk 0:01:57.1]} 20... Qd2 {[%clk
0:01:52.9]} 21. Rc2 {[%clk 0:01:57]} 21... Qg5 {[%clk 0:01:47.9]} 22. f4 {[%clk
0:01:57.1]} 22... Qh5 {[%clk 0:01:44.7]} 23. Qxh5 {[%clk 0:01:55.1]} 23... Nxh5
{[%clk 0:01:45.6]} 24. f5 {[%clk 0:01:13.7]} 24... exf5 {[%clk 0:01:37]} 25.
Rxf5 {[%clk 0:01:13.7]} 25... Nf6 {[%clk 0:01:36.7]} 26. c4 {[%clk 0:00:57.2]}
26... Rd8 {[%clk 0:01:36]} 27. d5 {[%clk 0:00:56.9]} 27... Ne8 {[%clk 0:01:28]}
28. Rcf2 {[%clk 0:00:53.3]} 28... Nd6 {[%clk 0:01:27.5]} 29. R5f4 {[%clk
0:00:50.6]} 29... Re8 {[%clk 0:01:21.4]} 30. Re2 {[%clk 0:00:45.2]} 30... Rce7
{[%clk 0:01:20.1]} 31. Rff2 {[%clk 0:00:44]} 31... Rxe5 {[%clk 0:01:19.6]} 32.
Rxe5 {[%clk 0:00:39.5]} 32... Rxe5 {[%clk 0:01:20.5]} 33. Kf1 {[%clk 0:00:38.7]}
33... Ba6 {[%clk 0:01:19.4]} 34. Rc2 {[%clk 0:00:38.3]} 34... f5 {[%clk
0:01:15.1]} 35. Kf2 {[%clk 0:00:38.1]} 35... Kf7 {[%clk 0:01:12.4]} 36. Bf1
{[%clk 0:00:36.6]} 36... Ne4+ {[%clk 0:01:10.1]} 37. Ke3 {[%clk 0:00:34.8]}
37... Kf6 {[%clk 0:01:07.2]} 38. Kd4 {[%clk 0:00:34.9]} 38... Nc5 {[%clk
0:01:04.2]} 39. Bg2 {[%clk 0:00:33.9]} 39... Bc8 {[%clk 0:00:59.2]} 40. Rf2
{[%clk 0:00:32.3]} 40... g5 {[%clk 0:00:56.6]} 41. h4 {[%clk 0:00:28.1]} 41...
Re1 {[%clk 0:00:54.6]} 42. hxg5+ {[%clk 0:00:27.7]} 42... hxg5 {[%clk
0:00:55.5]} 43. Kc3 {[%clk 0:00:26.4]} 43... Re3+ {[%clk 0:00:53]} 44. Kb4
{[%clk 0:00:25.7]} 44... Bd7 {[%clk 0:00:49.2]} 45. g4 {[%clk 0:00:24.1]} 45...
a5# {[%clk 0:00:48.9]} 0-1

[Event "*** SCC Grand Prix: Titled Tuesday Blitz"]
[Site "Chess.com"]
[Date "2020.06.09"]
[Round "10"]
[White "lachesisQ"]
[Black "chito89"]
[Result "1-0"]
[WhiteElo "3041"]
[BlackElo "2775"]
[TimeControl "180+1"]
[EndTime "10:56:52 PDT"]
[Termination "lachesisQ won by resignation"]

1. d4 {[%clk 0:03:00.9]} 1... d5 {[%clk 0:02:56.2]} 2. c4 {[%clk 0:02:59.5]}
2... dxc4 {[%clk 0:02:55.5]} 3. e4 {[%clk 0:02:59.2]} 3... Nf6 {[%clk
0:02:51.8]} 4. e5 {[%clk 0:02:59.1]} 4... Nd5 {[%clk 0:02:51.9]} 5. Bxc4 {[%clk
0:02:59.8]} 5... Bf5 {[%clk 0:02:50.5]} 6. Ne2 {[%clk 0:02:55.8]} 6... e6 {[%clk
0:02:49.4]} 7. O-O {[%clk 0:02:55.4]} 7... Nb6 {[%clk 0:02:32.7]} 8. Bb3 {[%clk
0:02:54.5]} 8... Nc6 {[%clk 0:02:28.9]} 9. Nbc3 {[%clk 0:02:54.4]} 9... Be7
{[%clk 0:02:28.5]} 10. Be3 {[%clk 0:02:46.4]} 10... Qd7 {[%clk 0:02:27.9]} 11.
Bc2 {[%clk 0:02:37.6]} 11... Bxc2 {[%clk 0:02:25.1]} 12. Qxc2 {[%clk 0:02:38.5]}
12... Nb4 {[%clk 0:02:15]} 13. Qe4 {[%clk 0:02:38.4]} 13... N4d5 {[%clk
0:02:14.3]} 14. Rad1 {[%clk 0:02:38.1]} 14... O-O-O {[%clk 0:02:09]} 15. Rc1
{[%clk 0:02:32.1]} 15... Kb8 {[%clk 0:02:06.2]} 16. Rfd1 {[%clk 0:02:32.1]}
16... h5 {[%clk 0:01:40.5]} 17. Nf4 {[%clk 0:02:29.6]} 17... g5 {[%clk
0:01:27.6]} 18. Nd3 {[%clk 0:02:29.5]} 18... Nxc3 {[%clk 0:01:15]} 19. bxc3
{[%clk 0:02:19.7]} 19... Qd5 {[%clk 0:01:15.6]} 20. f3 {[%clk 0:02:19.3]} 20...
Nc4 {[%clk 0:01:09.2]} 21. Bf2 {[%clk 0:02:10.8]} 21... Rhg8 {[%clk 0:00:58.6]}
22. Re1 {[%clk 0:01:44.7]} 22... a6 {[%clk 0:00:53.2]} 23. Rc2 {[%clk
0:01:42.1]} 23... Na3 {[%clk 0:00:49.6]} 24. Rce2 {[%clk 0:01:38.8]} 24... Nc4
{[%clk 0:00:50.1]} 25. Rb1 {[%clk 0:01:35.7]} 25... g4 {[%clk 0:00:46.3]} 26.
Nf4 {[%clk 0:01:26.3]} 26... Qxe4 {[%clk 0:00:31.9]} 27. fxe4 {[%clk 0:01:27.2]}
27... c5 {[%clk 0:00:28.6]} 28. Nxh5 {[%clk 0:01:23.1]} 28... cxd4 {[%clk
0:00:25.9]} 29. cxd4 {[%clk 0:01:22.9]} 29... Rc8 {[%clk 0:00:26.5]} 30. Nf6
{[%clk 0:01:17.3]} 30... Bxf6 {[%clk 0:00:26.9]} 31. exf6 {[%clk 0:01:18.2]}
31... Na3 {[%clk 0:00:27.7]} 32. Rb3 {[%clk 0:01:13.6]} 32... Rc1+ {[%clk
0:00:27.4]} 33. Re1 {[%clk 0:01:13.7]} 33... Rxe1+ {[%clk 0:00:27.6]} 34. Bxe1
{[%clk 0:01:14.6]} 34... Nc2 {[%clk 0:00:26.9]} 35. Bg3+ {[%clk 0:01:14.4]}
35... Ka7 {[%clk 0:00:26.4]} 36. Be5 {[%clk 0:01:13.5]} 36... Rd8 {[%clk
0:00:24.8]} 37. Bc7 {[%clk 0:01:09.3]} 37... Rc8 {[%clk 0:00:23.9]} 38. Rc3
{[%clk 0:01:03.4]} 38... Nb4 {[%clk 0:00:21.1]} 39. Bb6+ {[%clk 0:01:00.4]}
39... Kb8 {[%clk 0:00:21.5]} 40. Ba7+ {[%clk 0:01:00.8]} 1-0

[Event "*** SCC Grand Prix: Titled Tuesday Blitz"]
[Site "Chess.com"]
[Date "2020.06.09"]
[Round "10"]
[White "Efremov_Vlad"]
[Black "GMJustin"]
[Result "1-0"]
[WhiteElo "2179"]
[BlackElo "2271"]
[TimeControl "180+1"]
[EndTime "10:56:55 PDT"]
[Termination "Efremov_Vlad won on time"]

1. c4 {[%clk 0:03:00.9]} 1... b5 {[%clk 0:02:28.7]} 2. cxb5 {[%clk 0:02:58.9]}
2... a6 {[%clk 0:02:28.8]} 3. bxa6 {[%clk 0:02:58.3]} 3... Bxa6 {[%clk
0:02:27.9]} 4. Nf3 {[%clk 0:02:53.7]} 4... c5 {[%clk 0:02:22.9]} 5. g3 {[%clk
0:02:47.8]} 5... Nc6 {[%clk 0:02:19.4]} 6. Bg2 {[%clk 0:02:47.7]} 6... d5 {[%clk
0:02:16.3]} 7. b3 {[%clk 0:02:44.3]} 7... e5 {[%clk 0:02:11.4]} 8. Bb2 {[%clk
0:02:40.5]} 8... Bd6 {[%clk 0:02:06.2]} 9. d3 {[%clk 0:02:37.1]} 9... Nge7
{[%clk 0:02:02.7]} 10. Nbd2 {[%clk 0:02:31.7]} 10... O-O {[%clk 0:01:59.9]} 11.
O-O {[%clk 0:02:30.8]} 11... f5 {[%clk 0:01:58.4]} 12. Rc1 {[%clk 0:02:03.9]}
12... e4 {[%clk 0:01:52.7]} 13. dxe4 {[%clk 0:01:50.7]} 13... fxe4 {[%clk
0:01:51]} 14. Ng5 {[%clk 0:01:50.3]} 14... Bc8 {[%clk 0:01:23.2]} 15. Ndxe4
{[%clk 0:01:45.3]} 15... dxe4 {[%clk 0:01:19.8]} 16. Bxe4 {[%clk 0:01:45.4]}
16... h6 {[%clk 0:00:20.6]} 17. Bd5+ {[%clk 0:01:42.4]} 17... Kh8 {[%clk
0:00:09.2]} 18. Nf7+ {[%clk 0:01:42.1]} 18... Rxf7 {[%clk 0:00:09.3]} 19. Bxf7
{[%clk 0:01:41.7]} 19... Bh3 {[%clk 0:00:09.3]} 20. Re1 {[%clk 0:01:39.2]} 20...
Ne5 {[%clk 0:00:09.5]} 21. Bxe5 {[%clk 0:01:29.8]} 21... Bxe5 {[%clk 0:00:09.4]}
22. Qxd8+ {[%clk 0:01:06.7]} 22... Rxd8 {[%clk 0:00:09.4]} 23. Rxc5 {[%clk
0:01:06.7]} 23... Bd4 {[%clk 0:00:09.4]} 24. Rc4 {[%clk 0:01:02.5]} 24... Nf5
{[%clk 0:00:03.7]} 25. e3 {[%clk 0:00:54.7]} 25... Bf6 {[%clk 0:00:03.6]} 26.
Bg6 {[%clk 0:00:47.7]} 26... Ne7 {[%clk 0:00:03]} 27. Be4 {[%clk 0:00:45.5]}
27... h5 {[%clk 0:00:03]} 28. a4 {[%clk 0:00:40.5]} 28... h4 {[%clk 0:00:03.2]}
29. a5 {[%clk 0:00:40.1]} 29... g5 {[%clk 0:00:03.3]} 30. a6 {[%clk 0:00:39.2]}
30... Be6 {[%clk 0:00:02.7]} 31. Rc7 {[%clk 0:00:34.6]} 1-0

[Event "*** SCC Grand Prix: Titled Tuesday Blitz"]
[Site "Chess.com"]
[Date "2020.06.09"]
[Round "10"]
[White "BocharovD"]
[Black "Tesla37"]
[Result "0-1"]
[WhiteElo "2762"]
[BlackElo "2919"]
[TimeControl "180+1"]
[EndTime "10:56:57 PDT"]
[Termination "Tesla37 won by resignation"]

1. Nf3 {[%clk 0:03:00.9]} 1... Nf6 {[%clk 0:02:59.6]} 2. g3 {[%clk 0:03:01]}
2... d5 {[%clk 0:02:58.9]} 3. Bg2 {[%clk 0:03:00.7]} 3... c6 {[%clk 0:02:59.4]}
4. O-O {[%clk 0:03:00.5]} 4... Bg4 {[%clk 0:02:59.2]} 5. c4 {[%clk 0:03:00.5]}
5... e6 {[%clk 0:02:58.7]} 6. cxd5 {[%clk 0:02:59.8]} 6... Bxf3 {[%clk
0:02:58.2]} 7. Bxf3 {[%clk 0:02:59.9]} 7... cxd5 {[%clk 0:02:58.6]} 8. d3 {[%clk
0:03:00.3]} 8... Nc6 {[%clk 0:02:58.2]} 9. Nc3 {[%clk 0:03:00.5]} 9... Be7
{[%clk 0:02:57.1]} 10. Bd2 {[%clk 0:03:00.7]} 10... O-O {[%clk 0:02:56.8]} 11.
a3 {[%clk 0:03:00.7]} 11... a6 {[%clk 0:02:56.9]} 12. Bg2 {[%clk 0:03:00.4]}
12... Rc8 {[%clk 0:02:55.5]} 13. Rc1 {[%clk 0:02:54.5]} 13... b5 {[%clk
0:02:53.8]} 14. Na2 {[%clk 0:02:21]} 14... Qb6 {[%clk 0:02:47.8]} 15. e3 {[%clk
0:02:20.9]} 15... Rc7 {[%clk 0:02:41]} 16. d4 {[%clk 0:02:07.5]} 16... Rfc8
{[%clk 0:02:39]} 17. Qe2 {[%clk 0:02:07.9]} 17... Ne8 {[%clk 0:02:35.1]} 18. Qd3
{[%clk 0:01:59.7]} 18... Nd6 {[%clk 0:02:32.8]} 19. b3 {[%clk 0:02:00]} 19... f5
{[%clk 0:02:28.9]} 20. f3 {[%clk 0:01:34]} 20... Ne8 {[%clk 0:02:05.7]} 21. b4
{[%clk 0:01:26.7]} 21... Nd6 {[%clk 0:02:02.5]} 22. Bh3 {[%clk 0:01:10.9]} 22...
Nc4 {[%clk 0:01:59.5]} 23. g4 {[%clk 0:01:11.1]} 23... g6 {[%clk 0:01:53.6]} 24.
gxf5 {[%clk 0:01:08.7]} 24... exf5 {[%clk 0:01:51.5]} 25. Kh1 {[%clk 0:01:02.2]}
25... Bf6 {[%clk 0:01:47]} 26. Bc3 {[%clk 0:00:56.5]} 26... Re8 {[%clk
0:01:43.2]} 27. Rce1 {[%clk 0:00:45]} 27... Rce7 {[%clk 0:01:41.7]} 28. Bd2
{[%clk 0:00:42]} 28... Bh4 {[%clk 0:01:28.8]} 29. Nc3 {[%clk 0:00:38.7]} 29...
Bxe1 {[%clk 0:01:05]} 30. Nxd5 {[%clk 0:00:37.6]} 30... Bxd2 {[%clk 0:01:04.7]}
31. Nxb6 {[%clk 0:00:37.3]} 31... Rxe3 {[%clk 0:01:04.5]} 32. Qc2 {[%clk
0:00:36.4]} 32... Nxd4 {[%clk 0:01:03.7]} 33. Qa2 {[%clk 0:00:34.4]} 33... Rxa3
{[%clk 0:00:59.5]} 34. Qb1 {[%clk 0:00:30.9]} 34... Nxb6 {[%clk 0:00:57.7]} 35.
Qb2 {[%clk 0:00:28.1]} 35... Rd3 {[%clk 0:00:54.2]} 36. Rd1 {[%clk 0:00:28.1]}
36... Nc4 {[%clk 0:00:50.6]} 0-1